Cogmind - Beta 10.2 @@@ ROGUE MODE // 2021.10.21 @ 16:05:03 // Winter2019/RPGLIKE Player: ZEROAFFEX Result: Destroyed by S-27 Virus with Autogun Performance ------------- Evolutions (1) 500 Regions Visited (5) 1000 Robots Destroyed (19) 95 Value Destroyed (410) 410 Prototype IDs (0) 0 Alien Tech Used (0) 0 Bonus (0) 0 TOTAL SCORE: 2005 Bonus ------- None Cogmind --------- Core Integrity 0/600 Matter 250/300 Energy 290/290 System Corruption 1% Temperature Cool (56) Movement Flying (360) Ox4 Location -6/Proximity Caves Parts ------- > --- POWER (1) -------- Improved Deuterium Engine > --- PROPULSION (1) --- Flight Unit > --- UTILITY (1) ------ Sensor Array > --- WEAPON (1) ------- Advanced Assault Cannon > --- INVENTORY (0) ---- (None) Peak State ------------ > --- POWER ------------ Improved Deuterium Engine > --- PROPULSION ------- Flight Unit > --- UTILITY ---------- Sensor Array > --- WEAPON ----------- Advanced Assault Cannon > --- INVENTORY -------- (None) [Rating: 10] Favorites ----------- Power Ion Engine Engine Ion Engine Propulsion Flight Unit Treads Light Treads Flight Unit Flight Unit Utility Sensor Array Device Sensor Array Weapon Advanced Assault Cannon Energy Gun Particle Gun Energy Cannon Beam Cannon Ballistic Gun Light Assault Rifle Ballistic Cannon Advanced Assault Cannon Build | -11 -10 -9 -9 -7 -6 ------- Run | Scr Mat Mat Min Zio Pro Slots Evolved . | . . . . . . Power . | . . . . . . Propulsion . | . . . . . . Utility . | . . . . . . Weapon . | . . . . . . Parts Attached 14 | 3 8 1 2 . . Power 3 | 1 1 . 1 . . Engine 3 | 1 1 . 1 . . Core . | . . . . . . Reactor . | . . . . . . Propulsion 2 | 1 1 . . . . Treads 1 | 1 . . . . . Leg . | . . . . . . Wheel . | . . . . . . Hover . | . . . . . . Flight 1 | . 1 . . . . Utility 3 | . 3 . . . . Device 3 | . 3 . . . . Storage . | . . . . . . Processor . | . . . . . . Hackware . | . . . . . . Protection . | . . . . . . Artifact . | . . . . . . Weapon 6 | 1 3 1 1 . . Energy Gun 2 | 1 1 . . . . Energy Cannon 1 | . 1 . . . . Ballistic Gun 1 | . 1 . . . . Ballistic Cannon 2 | . . 1 1 . . Launcher . | . . . . . . Special Weapon . | . . . . . . Impact Weapon . | . . . . . . Slashing Weapon . | . . . . . . Piercing Weapon . | . . . . . . Special Melee Weapon . | . . . . . . Unidentified Prototypes . | . . . . . . Parts Lost . | . . . . . . Power . | . . . . . . Propulsion . | . . . . . . Utility . | . . . . . . Weapon . | . . . . . . Highest Loss Streak . | . . . . . . Average Slot Usage (%) 99 | . 98 100 100 100 . Engine 25 | . 25 25 25 25 . Treads 8 | . 18 . . . . Flight 16 | . 6 25 25 25 . Device 24 | . 23 25 25 25 . Energy Gun 3 | . 8 . . . . Energy Cannon 5 | . 10 . . . . Ballistic Gun 3 | . 6 8 . . . Ballistic Cannon 12 | . . 16 25 25 . Naked Turns . | . . . . . . Heaviest Build 18 | 6 9 11 18 18 . Greatest Support 20 | 20 20 4 4 4 . Greatest Overweight (x) 4 | . 2 2 4 4 . Average Overweight (x) 1 | . . 1 3 4 . Largest Inventory Capacity . | . . . . . . Average Capacity . | . . . . . . Most Carried . | . . . . . . Average Carried . | . . . . . . Final Capacity . | . . . . . . Final Carried . | . . . . . . Class Distribution -------------------- 100% | Mutant Dominant Class ---------------- Mutant | -10/Materials Mutant | -9/Materials Mutant | -9/Mines Mutant | -7/Zion Mutant | -6/Proximity Caves Resources | -11 -10 -9 -9 -7 -6 ----------- Run | Scr Mat Mat Min Zio Pro Matter Collected 370 | 230 105 20 15 . . Remotely . | . . . . . . Salvage Created 470 | . 414 26 . . 30 Parts 38 | . 33 3 . . 2 Haulers Intercepted . | . . . . . . Recyclers Shooed . | . . . . . . Parts Field Recycled . | . . . . . . Retrieved Matter . | . . . . . . Parts Self-Destructed . | . . . . . . Prevented . | . . . . . . Kills | -11 -10 -9 -9 -7 -6 ------- Run | Scr Mat Mat Min Zio Pro Combat Hostiles Destroyed 15 | . 14 . . . 1 Guns 5 | . 5 . . . . Cannons 9 | . 8 . . . 1 Classes Destroyed 6 | . 4 2 . . . Worker 1 | . . 1 . . . Builder 1 | . 1 . . . . Recycler 1 | . 1 . . . . Watcher 1 | . . 1 . . . Swarmer 7 | . 6 . . . 1 Grunt 8 | . 8 . . . . Best Kill Streak 6 | . 6 1 . . 1 Combat Bots Only 4 | . 4 . . . 1 Max Kills in Single Turn 1 | . 1 1 . . 1 Gunslinging . | . . . . . . Exploded . | . . . . . . Melee . | . . . . . . Uniques/NPCs Destroyed . | . . . . . . Combat | -11 -10 -9 -9 -7 -6 -------- Run | Scr Mat Mat Min Zio Pro Damage Taken 1276 | . 1034 110 38 . 94 Core 1062 | . 856 96 34 . 76 Absorbed by Shields . | . . . . . . Redirected to Core 672 | . 557 42 14 . 59 Core Remaining (%) 66 | 100 32 . . . . Volleys Fired 111 | . 100 5 2 . 4 Largest 1 | . 1 1 1 . 1 Hottest 65 | . 65 44 48 . 48 Shots Fired 111 | . 100 5 2 . 4 Gun 46 | . 46 . . . . Cannon 65 | . 54 5 2 . 4 Launcher . | . . . . . . Special . | . . . . . . Kinetic 36 | . 25 5 2 . 4 Thermal 75 | . 75 . . . . Explosive . | . . . . . . Electromagnetic . | . . . . . . Robot Hit Streak 5 | . 5 4 . . 3 Robot Miss Streak 6 | . 6 2 . . 3 Penetration Max . | . . . . . . Secondary Targets . | . . . . . . Shots Hit Robots 65 | . 60 2 . . 3 Core Hits 22 | . 19 2 . . 1 Critical Hits . | . . . . . . Critical Kills . | . . . . . . Critical Parts Destroyed . | . . . . . . Melee Attacks . | . . . . . . Impact . | . . . . . . Slashing . | . . . . . . Piercing . | . . . . . . Sneak Attacks . | . . . . . . Combat Hostiles . | . . . . . . Follow-up Attacks . | . . . . . . Damage Inflicted 1082 | . 956 40 . . 86 Guns 356 | . 356 . . . . Cannons 726 | . 600 40 . . 86 Explosions . | . . . . . . Melee . | . . . . . . Ramming . | . . . . . . Kinetic 258 | . 132 40 . . 86 Thermal 824 | . 824 . . . . Explosive . | . . . . . . Electromagnetic . | . . . . . . Impact . | . . . . . . Slashing . | . . . . . . Piercing . | . . . . . . Highest Corruption 1 | . . . 1 1 1 Average Corruption 1 | . . . 1 1 1 Corruption Purged . | . . . . . . Overload Shots . | . . . . . . Overflow Damage 5 | . . . . . 5 Projectiles 5 | . . . . . 5 Explosions . | . . . . . . Melee . | . . . . . . Knockbacks 3 | . . . . . 3 Impact . | . . . . . . Kinetic 2 | . . . . . 2 Secondary 1 | . . . . . 1 Self-Inflicted Damage . | . . . . . . Shots . | . . . . . . Rammed 2 | . 1 1 . . . Targets Rammed 2 | . 1 1 . . . Kicked . | . . . . . . Crushed . | . . . . . . Highest Temperature 428 | . 428 6 14 . 56 Average Temperature 105 | . 115 4 7 . 31 Received Heat Transfer 342 | . 279 63 . . . Effects 3 | . 3 . . . . Interference 2 | . 2 . . . . Damage (minor) 1 | . 1 . . . . Siege Activations . | . . . . . . Robots Corrupted . | . . . . . . Combat Hostiles . | . . . . . . Parts Fried . | . . . . . . Impact Corruptions . | . . . . . . Robots Melted 1 | . 1 . . . . Combat Hostiles 1 | . 1 . . . . Parts Melted 3 | . 3 . . . . Heat Transferred 1776 | . 1776 . . . . Parts Sabotaged . | . . . . . . Parts Stolen . | . . . . . . Parts Stripped . | . . . . . . Power Chain Reactions . | . . . . . . Missiles Intercepted . | . . . . . . Alert | -11 -10 -9 -9 -7 -6 ------- Run | Scr Mat Mat Min Zio Pro Peak Influence 155 | . 155 88 34 . . Initial 61 | . . 61 34 . . Average 63 | . 81 69 34 . . Maximum Alert Level . | . . . . . . Low Security (%) 100 | 100 100 100 100 . . Level 1 . | . . . . . . Level 2 . | . . . . . . Level 3 . | . . . . . . Level 4 . | . . . . . . Level 5 . | . . . . . . High Security . | . . . . . . Max Security . | . . . . . . Squads Dispatched 6 | . 4 2 . . . Investigation 2 | . 2 . . . . Extermination . | . . . . . . Reinforcement 4 | . 2 2 . . . Assault . | . . . . . . Garrison . | . . . . . . Intercept . | . . . . . . Construction Impeded . | . . . . . . Haulers Reinforced . | . . . . . . Stealth | -11 -10 -9 -9 -7 -6 --------- Run | Scr Mat Mat Min Zio Pro Distress Signals . | . . . . . . Communications Jammed . | . . . . . . Distress Signals . | . . . . . . Times Spotted 36 | . 28 5 . . 3 Peak Tracking Total 7 | . 7 4 . . 3 Tactical Retreats 1 | . 1 . . . . Traps | -11 -10 -9 -9 -7 -6 ------- Run | Scr Mat Mat Min Zio Pro Traps Triggered 3 | . 2 . 1 . . Indirectly . | . . . . . . Trap Hack Attempts . | . . . . . . Triggered . | . . . . . . Disarmed . | . . . . . . Reprogrammed . | . . . . . . Reused . | . . . . . . Traps Extracted . | . . . . . . Installed . | . . . . . . Triggered . | . . . . . . Machines | -11 -10 -9 -9 -7 -6 ---------- Run | Scr Mat Mat Min Zio Pro Machines Disabled 1 | . 1 . . . . Max in Single Turn 1 | . 1 . . . . Machines Sabotaged . | . . . . . . Garrisons Compromised . | . . . . . . Overloaded Fab Kills . | . . . . . . Fab Network Shutdowns . | . . . . . . Hacking | -11 -10 -9 -9 -7 -6 --------- Run | Scr Mat Mat Min Zio Pro Machines Accessed 2 | . 1 . 1 . . Terminals 1 | . 1 . . . . Fabricators . | . . . . . . Repair Stations . | . . . . . . Recycling Units . | . . . . . . Scanalyzers . | . . . . . . Garrison Access . | . . . . . . Total Hacks 3 | . 2 . 1 . . Successful 3 | . 2 . 1 . . Failed . | . . . . . . Catastrophic . | . . . . . . Database Lockouts . | . . . . . . Manual . | . . . . . . Terminals 2 | . 2 . . . . Fabricators . | . . . . . . Repair Stations . | . . . . . . Recycling Units . | . . . . . . Scanalyzers . | . . . . . . Garrison Access . | . . . . . . Terminal Hacks 3 | . 2 . 1 . . Open Door 1 | . . . 1 . . Unreport Threat 1 | . 1 . . . . Locate Traps 1 | . 1 . . . . Fabricator Hacks . | . . . . . . Repair Station Hacks . | . . . . . . Recycling Unit Hacks . | . . . . . . Scanalyzer . | . . . . . . Garrison Access Hacks . | . . . . . . Unauthorized Hacks . | . . . . . . Terminals . | . . . . . . Fabricators . | . . . . . . Repair Stations . | . . . . . . Recycling Units . | . . . . . . Scanalyzers . | . . . . . . Garrison Access . | . . . . . . Data Cores Recovered . | . . . . . . Used . | . . . . . . Hacking Detections 1 | . 1 . . . . Full Trace Events . | . . . . . . Feedback Events . | . . . . . . Feedback Blocked . | . . . . . . Robot Schematics Acquired . | . . . . . . Robots Built . | . . . . . . Matter . | . . . . . . Time . | . . . . . . Total Robot Build Rating . | . . . . . . Part Schematics Acquired . | . . . . . . Parts Built . | . . . . . . Matter . | . . . . . . Time . | . . . . . . Total Part Build Rating . | . . . . . . Parts Repaired . | . . . . . . Time . | . . . . . . Parts Recycled . | . . . . . . Recycled Matter . | . . . . . . Retrieved Matter . | . . . . . . Retrieved Components . | . . . . . . Parts Scanalyzed . | . . . . . . Part Schematics Acquired . | . . . . . . Parts Damaged . | . . . . . . Bothacking | -11 -10 -9 -9 -7 -6 ------------ Run | Scr Mat Mat Min Zio Pro Used RIF Installer . | . . . . . . Robots Hacked . | . . . . . . Non-combat . | . . . . . . Combat . | . . . . . . Robot Hacks Applied . | . . . . . . Relay Couplers Released . | . . . . . . Robots Rewired . | . . . . . . Allies Hacked . | . . . . . . Hacks Repelled . | . . . . . . Allies | -11 -10 -9 -9 -7 -6 -------- Run | Scr Mat Mat Min Zio Pro Total Allies . | . . . . . . Largest Group . | . . . . . . Highest-Rated Group . | . . . . . . Highest-Rated Ally . | . . . . . . Total Orders . | . . . . . . Ally Attacks . | . . . . . . Total Damage . | . . . . . . Kills . | . . . . . . Allies Corrupted . | . . . . . . Allies Melted . | . . . . . . Intel | -11 -10 -9 -9 -7 -6 ------- Run | Scr Mat Mat Min Zio Pro Robot Analysis Total . | . . . . . . Derelict Logs Recovered 1 | . . . 1 . . Drone Launches . | . . . . . . Drone Recoveries . | . . . . . . Exploration | -11 -10 -9 -9 -7 -6 ------------- Run | Scr Mat Mat Min Zio Pro Turns Passed 1508 | 54 685 186 337 238 8 Spaces Moved 629 | 36 303 107 116 67 . Core 6 | 6 . . . . . Treads 235 | 30 205 . . . . Legs . | . . . . . . Wheels . | . . . . . . Hover . | . . . . . . Flight 388 | . 98 107 116 67 . Fastest Speed 50 | 50 120 120 200 360 . Average Speed 198 | 141 147 162 286 360 . Slowest Speed 360 | 160 200 200 360 360 . Overloaded Moves . | . . . . . . Propulsion Burnouts . | . . . . . . Robots Hopped . | . . . . . . Cave-ins Triggered . | . . . . . . Exploration Rate (%) 21 | 4 64 16 36 9 2 Regions Visited 5 Branch Regions 3 Pre-discovered Areas . | . . . . . . Known Exits Taken . | . . . . . . Unknown Exits Taken 5 | 1 1 1 1 1 . Scrap Searched 1 | . . . 1 . . Spaces Dug 1 | . . . 1 . . Terrain Destroyed 3 | . . . 2 . 1 Melee . | . . . . . . Projectile 3 | . . . 2 . 1 AOE . | . . . . . . Terrain Rammed . | . . . . . . Walls Destroyed . | . . . . . . Machines Disabled . | . . . . . . Actions | -11 -10 -9 -9 -7 -6 --------- Run | Scr Mat Mat Min Zio Pro Total 788 | 38 445 114 121 66 4 Wait 7 | . 7 . . . . Move 624 | 35 302 106 115 66 . Hop . | . . . . . . Pick Up . | . . . . . . Fast Attach 11 | 3 6 1 1 . . Attach . | . . . . . . Detach . | . . . . . . Swap 3 | . 2 . 1 . . Drop 10 | . 7 1 2 . . Fire 111 | . 100 5 2 . 4 Melee . | . . . . . . Ram 1 | . . 1 . . . Kick . | . . . . . . Crush 1 | . 1 . . . . Escape Stasis . | . . . . . . Rewire . | . . . . . . Trap . | . . . . . . Miscellaneous 20 | . 20 . . . . Route ------- -11/Scrapyard -10/Materials (discovered 2 exits: [*Mat] / [*Min]) -9/Materials -9/Mines -7/Zion -6/Proximity Caves History --------- Turn | Location | Event 2 | -11/Scrapyard | Met Revision 17 5 | -11/Scrapyard | Discovered new exit (range 15) 55 | -11/Scrapyard | Entered Materials 305 | -10/Materials | Build established: Mutant 349 | -10/Materials | Core integrity fell below 50% 434 | -10/Materials | Discovered new exit (range 9) 555 | -10/Materials | Reached level 2 700 | -10/Materials | Discovered new exit (range 4) 740 | -10/Materials | Entered another Materials area 741 | -9/Materials | Core integrity fell below 50% 742 | -9/Materials | Reached level 3 912 | -9/Materials | Discovered new exit (range 7) 926 | -9/Materials | Entered Mines 927 | -9/Mines | A Derelict revealed a hidden shortcut to a safe place 927 | -9/Mines | Core integrity fell below 20% 1013 | -9/Mines | Met a Derelict who couldn't figure out how to use a Trap Extractor 1263 | -9/Mines | Entered Zion 1371 | -7/Zion | Given the Hacking Drone Bay 1451 | -7/Zion | Discovered new exit (range 14) 1501 | -7/Zion | Entered Proximity Caves 1503 | -6/Proximity Caves | Reached level 4 1509 | -6/Proximity Caves | Destroyed by S-27 Virus with Autogun Last Messages --------------- LOCATION=UNKNOWN GOAL=ESCAPE 01264_ Q7-JP8(z): "It's not far from here, follow me." 01317_ PUBLIC SERVICE ANNOUNCEMENT: Quarantine Array scanned 1 system, cleaned 0. M2-RHI(c): I put all my knowledge of 0b10 terminal hacking into this drone, but why bother? I can just do the hacks myself if I need to! You look like a terrible hacker. Take it. 01434_ PUBLIC SERVICE ANNOUNCEMENT: Quarantine Array scanned 1 system, cleaned 0. TP-WJ6(z): I'm pretty sure the "cloak generators" don't actually do anything. They're just here to make us feel better. 01451_ EXIT=FOUND LOCATION=UNKNOWN GOAL=ESCAPE 01503_ Reached level 4. 01503_ Destroyed VTOL Module. 01503_ S-27 Virus knocked back. 01505_ S-27 Virus destroyed. Map ----- +----------------------------------------------------+ | | | | | | | ?????????????????????????????????????????????????? | | ?????????????????????????????????????????????????? | | ?????????????????????????????????????????????????? | | ?????????????????????????????????????????????????? | | ?????????????????????????????????????????????????? | | ?????????????????????????????????????????????????? | | ?????????????????????????????????????????????????? | | ?????????????????????????????????????????????????? | | ?????????????????????????????????????????????????? | | ?????????????????????????????????????????????????? | | ?????????????????????????????????????????????????? | | ?????????????????????????????????????????????????? | | ?????????????????????????????????????????????????? | | ?????????????????????????????????????????????????? | | ?????????????????????????????????????????????????? | | ???????????????????????????##????????????????????? | | ??????????????????????????? ##???????????????????? | | ?????????????????????????? ##??????????????????? | | ?????????????????????????? #??????????????????? | | ?????????????????????????? #???????????????????? | | ??????????????????????#### #???????????????????? | | ??????????????# #### ##??????????????????? | | ???????????????# @ #??????????????????? | | ????????????????# ;#????????????????? | | ????????????????## #### s#????????????????? | | ??????????????????????# s=#????????????????? | | ?????????????????????? ###%#????????????????? | | ????????????????????? ??? #???????????????? | | ????????????????????# ???#???????????????? | | ????????????????????## ###???????????????????? | | ?????????????????????# ####?????????????????????? | | ?????????????????????# ?????????????????????????? | | ?????????????????????# ?????????????????????????? | | ?????????????????????# ?????????????????????????? | | ?????????????????????# ?????????????????????????? | | ?????????????????????# ?????????????????????????? | | ?????????????????????# ??????????????????????????? | | ?????????????????????????????????????????????????? | | ?????????????????????????????????????????????????? | | ?????????????????????????????????????????????????? | | ?????????????????????????????????????????????????? | | ?????????????????????????????????????????????????? | | ?????????????????????????????????????????????????? | | ?????????????????????????????????????????????????? | | ?????????????????????????????????????????????????? | | ?????????????????????????????????????????????????? | | ?????????????????????????????????????????????????? | +----------------------------------------------------+ Best States ------------- Heat Dissipation 35 Energy Generation 16 Energy Capacity 290 Matter Stores 300 Matter Capacity 300 Sight Range 16 Robot Scan Range 10 Terrain Scan Density 10 Evasion (%) 40 Recoil Reduction 1 Item Schematics ----------------- None Robot Schematics ------------------ None Fabricated ------------ Nothing Alien Tech Used ----------------- None Achievements -------------- It's Just You Challenges ------------ None RPGLIKE | -11 -10 -9 -9 -7 -6 --------- Run | Scr Mat Mat Min Zio Pro Levels Raised 3 | . 1 1 . . 1 XP Earned 8535 | 3000 1900 1535 500 500 1100 Upgrades . | . . . . . . Protomatter Created 150 | . 150 . . . . Integrity Restored 450 | . 450 . . . . Core 450 | . 450 . . . . Protomatter Decayed . | . . . . . . Game ------ Seed CompactCentriumBoregun Manual? 0 Play Time 00:14:50 Cumulative 14.9 hours Start 2021.10.21 @ 15:50:00 End 2021.10.21 @ 16:05:03 Sessions 1 Manual Loads 0 Difficulty Rogue Special Mode Winter2019/RPGLIKE Game No. 19 Rogue 17 Adventurer 2 Explorer 0 Win Type - Total 0 Types 0/0/0/0/0/0/0/0/0 Lore% 11 Gallery% 18 Achievement% 18 Wizard Run 0 Options --------- ASCII 0 Keyboard 0 Movement Mouse Keybinds 0 Fullscreen 1 Font 18/TerminusBold Map View 76x50 Tactical HUD 1 Map Filters NONE Filters NONE Steam 1 RUN: 69765cbe-50d7-4198-b249-f66b1765dc09